Workbook

Sheet Informacja_dodatkowa
C3: FUNDACJA NUTRICIA w Warszawie ul. Bobrowiecka 8
C5: Informacja dodatkowa za 2017 r.
A9: 1 | C9: a. Stosowane metody wyceny aktywów i pasywów
C10: Wyszczególnienie | E10: Przyjęte metody wyceny w zasadach (polityce) rachunkowości
C11: Środki trwałe i wartości niematerialne i prawne | E11: Według cen nabycia lub kosztu wytworzenia zgodnie z ustawą o rachunkowości
C12: Środki pieniężne w gotówce i na rachunkach bankowych | E12: W wartościach nominalnych
C13: Zobowiązania i należnści | E13: Wycenia się w kwocie wymaganej zapłaty
A17: 1 | C17: b. Zmiany stosowanych metod wyceny aktywów i pasywów - przyczyny i wynik
C18: Wyszczególnienie zmiany | D18: Przyczyny zmiany | F18: Kwota wyniku finansowego spowodowana zmianami
C19: Nie dotyczy | D19: Nie dotyczy | F19: 0
A23: 1 | C23: c. Informacje o zdarzeniach gospodarczych po dacie bilansu nieujęte w księgach handlowych
C24: Wyszczególnienie zdarzeń | D24: Kwota w złotych | F24: Nie uwzględniono w
F25: Bilansie | G25: Rachunku wyników
C26: nie dotyczy | D26: 0 | F26: 0 | G26: 0
C27: nie dotyczy | D27: 0 | F27: 0 | G27: 0
A30: 2 | C30: a. Rzeczowe aktywa trwałe - środki trwałe
C31: Nazwa grupy składników majątku trwałego | D31: Stan na początek roku obrotowego | E31: Aktualizacja | F31: Przychody | G31: Przemieszczenia | H31: Rozchody | I31: Stan na koniec roku obrotowego
C32: 1. grunty (w tym prawo użytkowania gruntu) | D32: 0 | E32: 0 | F32: 0 | G32: 0 | H32: 0 | I32: =D32+E32+F32+G32-H32 -> 0
C33: 2. budynki, lokale i obiekty inżynierii lądowej i wodnej | D33: 0 | E33: 0 | F33: 0 | G33: 0 | H33: 0 | I33: =D33+E33+F33+G33-H33 -> 0
C34: 3. urządzenia techniczne i maszyny | D34: 3,387.64 | E34: 0 | F34: 0 | G34: 0 | H34: 3,387.64 | I34: =D34+E34+F34+G34-H34 -> 0
C35: 4. środki transportu | D35: 0 | E35: 0 | F35: 0 | G35: 0 | H35: 0 | I35: =D35+E35+F35+G35-H35 -> 0
C36: 5. inne środki trwałe | D36: 0 | E36: 0 | F36: 0 | G36: 0 | H36: 0 | I36: =D36+E36+F36+G36-H36 -> 0
C37: Razem | D37: =SUM(D32:D36) -> 3,387.64 | E37: 0 | F37: 0 | G37: 0 | H37: 3,387.64 | I37: 0
A40: 2 | C40: b. Umorzenie środków trwałych - amortyzacja
C41: Nazwa grupy składników majątku trwałego | D41: Stan na początek roku obrotowego | E41: Aktualizacja | F41: Amortyzacja za rok | G41: Inne zwiększenia | H41: Zmniejszenie | I41: Stan na koniec roku obrotowego | J41: Stan na początek roku obrotowego (netto) | K41: Stan na koniec roku obrotowego (netto)
C42: 1. grunty (w tym prawo użytkowania gruntu) | D42: 0 | E42: 0 | F42: 0 | G42: 0 | H42: 0 | I42: =D42-E42+F42+G42-H42 -> 0 | J42: =D32-D42 -> 0 | K42: =I32-I42 -> 0
C43: 2. budynki, lokale i obiekty inżynierii lądowej i wodnej | D43: 0 | E43: 0 | F43: 0 | G43: 0 | H43: 0 | I43: =D43-E43+F43+G43-H43 -> 0 | J43: =D33-D43 -> 0 | K43: =I33-I43 -> 0
C44: 3. urządzenia techniczne i maszyny | D44: 2,371.32 | E44: 0 | F44: 508.14 | G44: 0 | H44: 2,879.46 | I44: =D44-E44+F44+G44-H44 -> 0 | J44: =D34-D44 -> 1,016.32 | K44: =I34-I44 -> 0
C45: 4. środki transportu | D45: 0 | E45: 0 | F45: 0 | G45: 0 | H45: 0 | I45: =D45-E45+F45+G45-H45 -> 0 | J45: =D35-D45 -> 0 | K45: =I35-I45 -> 0
C46: 5. inne środki trwałe | D46: 0 | E46: 0 | F46: 0 | G46: 0 | H46: 0 | I46: =D46-E46+F46+G46-H46 -> 0 | J46: =D36-D46 -> 0 | K46: =I36-I46 -> 0
C47: Razem | D47: =SUM(D42:D46) -> 2,371.32 | E47: =SUM(E42:E46) -> 0 | F47: 508.14 | G47: 0 | H47: 2,879.46 | I47: 0 | J47: 1,016.32 | K47: 0
A50: 2 | C50: c. Grunty użytkowane wieczyście
D51: Stan na początek roku obrotowego | E51: Zmiany w ciągu roku | G51: Stan na koniec roku obrotowego
E52: Zwiększenia | F52: Zmniejszenia
C53: Powierzchnia m2 | D53: 0 | E53: 0 | F53: 0 | G53: =D53+E53-F53 -> 0
C54: Wartość | D54: 0 | E54: 0 | F54: 0 | G54: =D54+E54-F54 -> 0
A57: 2 | C57: d. Środki trwałe używana na podstawie umowy najmu lub dzierżawy
D58: Stan na początek roku obrotowego | E58: Zmiany w ciągu roku | G58: Stan na koniec roku obrotowego
E59: Zwiększenia | F59: Zmniejszenia
C60: 1. grunty (w tym prawo użytkowania gruntu) | D60: 0 | E60: 0 | F60: 0 | G60: =D60+E60-F60 -> 0
C61: 2. budynki, lokale i obiekty inżynierii lądowej i wodnej | D61: 0 | E61: 0 | F61: 0 | G61: =D61+E61-F61 -> 0
C62: 3. urządzenia techniczne i maszyny | D62: 0 | E62: 0 | F62: 0 | G62: =D62+E62-F62 -> 0
C63: 4. środki transportu | D63: 0 | E63: 0 | F63: 0 | G63: =D63+E63-F63 -> 0
C64: 5. inne środki trwałe | D64: 0 | E64: 0 | F64: 0 | G64: =D64+E64-F64 -> 0
C65: Razem | D65: =SUM(D60:D64) -> 0 | E65: =SUM(E60:E64) -> 0 | F65: =SUM(F60:F64) -> 0 | G65: =SUM(G60:G64) -> 0
A68: 2 | C68: e. Wartości niematerialne i prawne
C69: Nazwa grupy składników majątku trwałego | D69: Stan na początek roku obrotowego | E69: Przychody | F69: Rozchody | G69: Stan na koniec roku obrotowego
C70: 1. Inne wartości niematerialne i prawne | D70: 0 | E70: 0 | F70: 0 | G70: =D70+E70-F70 -> 0
C71: Razem | D71: 0 | E71: =SUM(E70:E70) -> 0 | F71: =SUM(F70:F70) -> 0 | G71: =SUM(G70:G70) -> 0
A74: 2 | C74: f. Umorzenie wartości niematerialnych i prawnych - amortyzacja
C75: Nazwa grupy składników majątku trwałego | D75: Stan na początek roku obrotowego | E75: Amortyzacja za rok | F75: Inne zwiększenia | G75: Zmniejszenie | H75: Stan na koniec roku obrotowego | I75: Stan na początek roku obrotowego (netto) | J75: Stan na koniec roku obrotowego (netto)
C76: 1. Inne wartości niematerialne i prawne | D76: 0 | E76: 0 | F76: 0 | G76: 0 | H76: =D76+E76+F76-G76 -> 0 | I76: =D70-D76 -> 0 | J76: =G70-H76 -> 0
C77: Razem | D77: =SUM(D76:D76) -> 0 | E77: 0 | F77: 0 | G77: 0 | H77: 0 | I77: 0 | J77: 0
A79: 2 | C79: g. Inwestycje długoterminowe
D80: Stan na początek roku obrotowego | E80: Zmiany w ciągu roku | G80: Stan na koniec roku obrotowego
E81: Zwiększenia | F81: Zmniejszenia
C82: 1. Nieruchomości | D82: 0 | E82: 0 | F82: 0 | G82: =D82+E82-F82 -> 0
C83: 2. Wartości niematerialne i prawne | D83: 0 | E83: 0 | F83: 0 | G83: =D83+E83-F83 -> 0
C84: 3. Długoterminowe aktywa finansowe | D84: 0 | E84: 0 | F84: 0 | G84: 0
C85: a. udziały i akcje | D85: 0 | E85: 0 | F85: 0 | G85: 0
C86: b. inne papiery wartościowe | D86: 0 | E86: 0 | F86: 0 | G86: 0
C87: c. udzielone pożyczki | D87: 0 | E87: 0 | F87: 0 | G87: 0
C88: d. inne długoterminowe aktywa finansowe | D88: 0 | E88: 0 | F88: 0 | G88: 0
C89: 4. Inne długoterminowe inwestycje | D89: 0 | E89: 0 | F89: 0 | G89: 0
C90: Razem | D90: =SUM(D82:D89) -> 0 | E90: =SUM(E82:E89) -> 0 | F90: =SUM(F82:F89) -> 0 | G90: =SUM(G82:G89) -> 0
A92: 2 | C92: h. Podział należności według pozycji bilansu o pozostałym na dzień bilansowy, przewidywanym umową okresie spłaty
C93: Należności z tytułu | D93: okres wymagalności | H93: Razem
D94: do 1 roku | F94: powyżej 1 roku
D95: stan na
D96: początek roku obrotowego | E96: koniec roku obrotowego | F96: początek roku obrotowego | G96: koniec roku obrotowego | H96: początek roku obrotowego | I96: koniec roku obrotowego
C97: 1. dostaw i usług | D97: 0 | E97: 0 | F97: 0 | G97: 0 | H97: =D97+F97 -> 0 | I97: 0
C98: 2. podatków | D98: 0 | E98: 0 | F98: 0 | G98: 0 | H98: 0 | I98: 0
C99: 3. środków od ZUS | D99: 0 | E99: 15.81 | F99: 0 | G99: 0 | H99: 0 | I99: 15.81
C100: 4. wynagrodzeń | D100: 0 | E100: 0 | F100: 0 | G100: 0 | H100: 0 | I100: 0
C101: 5. dochodzone na drodze sądowej | D101: 0 | E101: 0 | F101: 0 | G101: 0 | H101: =D101+F101 -> 0 | I101: 0
C102: 6. innych należności | D102: 55,500.00 | E102: =21015.81-E99 -> 21,000.00 | F102: 0 | G102: 0 | H102: =D102+F102 -> 55,500.00 | I102: 21,000.00
C103: Razem | D103: =SUM(D97:D102) -> 55,500.00 | E103: 21,015.81 | F103: 0 | G103: 0 | H103: 55,500.00 | I103: 21,015.81
A106: 2 | C106: i. Podział zobowiązań według pozycji bilansu o pozostałym na dzień bilansowy, przewidywanym umową okresie spłaty
C107: Zobowiązania z tytułu | D107: okres wymagalności | H107: Razem
D108: do 1 roku | F108: powyżej 1 roku
D109: stan na
D110: początek roku obrotowego | E110: koniec roku obrotowego | F110: początek roku obrotowego | G110: koniec roku obrotowego | H110: początek roku obrotowego | I110: koniec roku obrotowego
C111: 1. kredytów i pożyczek | D111: 0 | E111: 0 | H111: =D111+F111 -> 0 | I111: =E111+G111 -> 0
C112: 2. dostaw i usług | D112: 0 | E112: 0.80 | H112: =D112+F112 -> 0 | I112: =E112+G112 -> 0.80
C113: 3. podatków | D113: 580.00 | E113: =294 -> 294.00 | H113: 580.00 | I113: 294.00
C114: 4. ubezpieczeń społecznych | D114: 0 | E114: 0 | H114: 0 | I114: 0
C115: 5. wynagrodzeń | D115: 0 | E115: 6.47 | H115: 0 | I115: 6.47
C116: 6. zobowiązań wekslowych | D116: 0 | E116: 0 | H116: 0 | I116: 0
C117: 7. innych zobowiązań | D117: =2460+37555+80.68+400+134.07+450 -> 41,079.75 | E117: =1585.27-E113-E115-E112 -> 1,284.00 | H117: 41,079.75 | I117: 1,284.00
C118: Razem | D118: =SUM(D111:D117) -> 41,659.75 | E118: 1,585.27 | F118: 0 | G118: 0 | H118: 41,659.75 | I118: 1,585.27
A121: 2 | C121: j. Rozliczenia międzyokresowe czynne i bierne
C122: Tytuły | D122: stan na
D123: początek roku obrotowego | E123: koniec roku obrotowego
C124: 1.Ogółem czynne rozliczenia międzyokresowe kosztów wg tytułów: | D124: =SUM(D125:D128) -> 5,814.27 | E124: =SUM(E125:E128) -> 2,546.87
C125: a. opłacone z góry czynsze z tytułu wynajmowania pomieszczeń | D125: 0 | E125: 0
C126: b. opłacone z góry prenumeraty czasopism i innych publikacji | D126: 0 | E126: 0
C127: c. opłacone z góry ubezpieczenia majątkowe i osobowe | D127: 0 | E127: 0
C128: d. inne czynne rozliczenia międzyokresowe kosztów | D128: =1842.54+738+1287+944.64+12693.6-7594.23-4097.28 -> 5,814.27 | E128: =748+501.84+738+186.34+372.69 -> 2,546.87
C129: 2.Ogółem bierne rozliczenia międzyokresowe kosztów wg tytułów: | D129: =SUM(D130) -> 0 | E129: =SUM(E130) -> 0
C130: a. inne bierne rozliczenia międzyokresowe kosztów | D130: 0 | E130: 0
A133: 2 | C133: k. Rozliczenia międzyokresowe przychodów
C134: Tytuły | D134: stan na
D135: początek roku obrotowego | E135: koniec roku obrotowego
C136: 1.Rozliczenia międzyokresowe przychodów (wyszczególnienie wg tytułów) | D136: =SUM(D137:D138) -> 0 | E136: =SUM(E137:E138) -> 0
D137: 0 | E137: 0
A141: 2 | C141: l. Informacje o zyskach i stratach nadzwyczajnych
C142: Wyszczególnienie | D142: Rok bieżący | E142: Rok ubiegły
C143: Zyski nadzwyczajne - losowe | D143: 0 | E143: 0
C144: Zyski nadzwyczajne - pozostałe | D144: 0 | E144: 0
C145: Suma | D145: =SUM(D143:D144) -> 0 | E145: 0
C146: Straty nadzwyczajne - losowe | D146: 0 | E146: 0
C147: Straty nadzwyczajne - pozostałe | D147: 0 | E147: 0
C148: Suma | D148: =SUM(D146:D147) -> 0 | E148: 0
A151: 2 | C151: M. Zatrudnienie i wynagrodzenia
C152: Wyszczególnienie | D152: Przeciętne zatrudnienie w roku
C153: pracownicy ksiegowośc | D153: 2.00
C154: koordynator badań naukowych | D154: 1.00
C156: Ogółem | D156: =SUM(D153:D155) -> 3.00
C158: Wypełniają organizacje prowadzące działalność statutową odpłatną i nieodpłatną pożytku publicznego oraz prowadzące tylko działalność statutową odpłatną pożytku publicznego. W pozostałych przypadkach wpisać n/d
A159: 2 | C159: N. Informacja o wypłaconych wynagrodzeniach powyżej określonego poziomie w art. 9 ust. 1 pkt 2 Ustawy o działalności pożytku publicznego i o wolontariacie (Dz.U. Nr 96 poz. 873 z późn. zm.)
C160: Wyszczególnienie | E160: Liczba osób
C161: Liczba osób, które przekroczyły w/w wynagrodzenie | E161: n/d
A164: 3 | C164: Informacje o strukturze przychodów - źródła i wysokość
C165: a. Przychody z działalności statutowej | D165: =D167+D173+D177 -> 4,391,090.38
C166: Składki brutto określone statutem
C167: Przychody z działalności statutowej nieodpłatnej pożytku publicznego | D167: =SUM(D168:D172) -> 0
C168: (wyszczególnienie)
C173: Przychody z działalności statutowej odpłatnej pożytku publicznego | D173: =SUM(D174:D176) -> 5,200.00
C174: (wyszczególnienie) | D174: 5,200.00
C177: Pozostałe przychody określone statutem | D177: =SUM(D178:D180) -> 4,385,890.38
C178: (wyszczególnienie - darowizny) | D178: =4184875+50000 -> 4,234,875.00
C179: (wyszczególnienie - 1%) | D179: 133.70
C180: (wyszczególnienie - NPNK) | D180: 150,881.68
A183: 3 | C183: b. Pozostałe przychody | D183: =SUM(D184:D186) -> 559.00
C184: Przychody ze sprzedaży środków trwałych, środków trwałych w budowie oraz wartości niematerialnych i prawnych | D184: 559.00
C185: Przychody z likwidacji środków trwałych
C186: Inne
A189: 3 | C189: c. Przychody finansowe | D189: =SUM(D190:D195) -> 678.91
C190: Cena sprzedaży akcji i udziałów
C191: Odsetki od lokat, wkładów bankowych | D191: 678.91
C192: Odsetki od pożyczek
C193: Odsetki od posiadanych papierów wartościowych
C194: Otrzymane dywidendy od akcji obcych
C195: Inne przychody finansowe
A198: 4 | C198: a. Informacje o strukturze kosztów
C199: Koszty realizacji działalności statutowej nieodpłatnej pożytku publicznego | D199: =D200+D204 -> 3,807,479.81
C200: świadczenia pieniężne: | D200: =SUM(D201:D203) -> 3,807,479.81
C201: badana naukowe i działania edukacyjne w dziedzinie żywienia | D201: =165217+1388159.62+64970+10000.61+10000+151000+149875.99+28000+2460+210700+92705.92+44772+20000+57880+27280+326029.2+73828.92+15504+40000+22878 -> 2,901,261.26
C202: sympozja, szkolenia, konsutacje | D202: =73668.32-5200 -> 68,468.32
C203: inne - usługi PR i koordynacji projektów | D203: 837,750.23
C204: świadczenia niepieniężne: | D204: =SUM(D205:D207) -> 0
C205: komputer wraz z wyposażeniem | D205: 0
C208: Koszty realizacji działalności statutowej odpłatnej pożytku publicznego | D208: =D209+D213 -> 5,200.00
C209: świadczenia pieniężne: | D209: =SUM(D210:D212) -> 5,200.00
C210: (wyszczególnienie) | D210: 5,200.00
C213: świadczenia niepieniężne: | D213: =SUM(D214:D216) -> 0
C214: (wyszczególnienie)
C217: Pozostałe koszty realizacji zadań statutowych | D217: =D218+D222 -> 263,363.50
C218: świadczenia pieniężne | D218: =SUM(D219:D221) -> 263,363.50
D219: =73000+144300+46063.5 -> 263,363.50
C222: świadczenia niepieniężne | D222: =SUM(D223:D225) -> 0
C223: (wyszczególnienie)
C226: Koszty administracyjne: | D226: =SUM(D227:D232) -> 150,757.01
C227: - zużycie materiałów i energii | D227: 2,369.40
C228: - usługi obce | D228: 96,758.60
C229: - podatki i opłaty | D229: 0
C230: - wynagrodzenia oraz ubezpieczenia społeczne i inne świadczenia | D230: 51,120.87
C231: - amortyzacja | D231: 508.14
C232: - pozostałe koszty | D232: 0
A235: 4 | C235: b. Pozostałe koszty | D235: =SUM(D236:D238) -> 1,492.18
C236: wartość netto sprzedanych środków trwałych, środków trwałych w budowie oraz wartości niematerialnych i prawnych | D236: 508.18
C237: wartość netto z likwidacji środków trwałych, wartości niematerialnych i prawnych w wyniku zdarzeń mieszczących się w granicach ogólnego ryzyka gospodarczego
C238: Inne | D238: 984.00
A241: 4 | C241: c. Koszty finansowe | D241: =SUM(D242:D247) -> 0
C242: Wartość ewidencyjna sprzedanych udziałów i akcji, stanowiących długo i krótkoterminowe aktywa finansowe | D242: 0
C243: Odsetki od kredytów i pożyczek oprócz odsetek od kredytów inwestycyjnych w okresie realizacji inwestycji | D243: 0
C244: Opłacone prowizje od zaciągniętych kredytów, oprócz prowizji od kredytów inwestycyjnych | D244: 0
C245: Zapłacone odsetki za nieterminową regulację zobowiązań | D245: 0
C246: Odsetki i dodatkowe opłaty od środków trwałych przejętych w leasing finansowy | D246: 0
C247: Inne koszty finansowe | D247: 0
A249: 5 | C249: a. Źródła zwiększenia i wykorzystanie funduszu statutowego
C251: Wyszczególnienie | D251: Fundusz
D252: statutowy | E252: z aktualizacji wyceny
C253: 1. Stan na początek roku obrotowego | D253: 50,000.00
C254: a. zwiększenia | D254: =D255+D256 -> 0 | E254: =E255+E256 -> 0
C255: - z zysku
C256: - inne
C257: b. zmniejszenia | D257: =D258+D259 -> 0 | E257: =E258+E259 -> 0
C258: - pokrycie straty
C259: - inne
C260: 2. Stan na koniec okresu obrotowego | D260: =D253+D254-D257 -> 50,000.00 | E260: =E253+E254-E257 -> 0
A263: 5 | C263: b. Rozliczenie wyniku na działalności statutowej
C265: Wynik na działalności statutowej | D265: =SUM(D267:D275) -> 164,035.79
C266: w tym:
C267: Przychody statutowe | D267: =D165+D183+D189 -> 4,392,328.29
C268: badania naukowe i działania edukacyjne w dziedzinie żywienia | D268: =-D201 -> -2,901,261.26
C269: darowizny | D269: =-144300-46063.5 -> -190,363.50
C270: sympozja, szkolenia , konferencje | D270: =-D202-D209 -> -73,668.32
C271: stypendia | D271: 0
C272: konsultacje | D272: -73,000.00
... 18 more rows
